[Event "*** SCC Grand Prix: Titled Tuesday Blitz"]
[Site "Chess.com"]
[Date "2020.09.08"]
[Round "3"]
[White "Gvetadze"]
[Black "slavenok"]
[Result "1-0"]
[WhiteElo "2442"]
[BlackElo "2722"]
[TimeControl "180+1"]
[EndTime "10:30:07 PDT"]
[Termination "Gvetadze won by resignation"]

1. e4 {[%clk 0:03:00.9]} 1... c5 {[%clk 0:02:59.5]} 2. Nf3 {[%clk 0:03:01.1]}
2... a6 {[%clk 0:02:58.6]} 3. c4 {[%clk 0:03:01]} 3... Nc6 {[%clk 0:02:56.2]} 4.
Nc3 {[%clk 0:03:01.1]} 4... e5 {[%clk 0:02:54.6]} 5. Be2 {[%clk 0:02:55.7]} 5...
Nf6 {[%clk 0:02:53.9]} 6. O-O {[%clk 0:02:55.7]} 6... Be7 {[%clk 0:02:53.2]} 7.
d3 {[%clk 0:02:56.1]} 7... O-O {[%clk 0:02:51.6]} 8. h3 {[%clk 0:02:55.2]} 8...
d6 {[%clk 0:02:51.3]} 9. Be3 {[%clk 0:02:55.2]} 9... Be6 {[%clk 0:02:50.3]} 10.
a3 {[%clk 0:02:53.5]} 10... h6 {[%clk 0:02:50.4]} 11. Rb1 {[%clk 0:02:53.2]}
11... Rb8 {[%clk 0:02:49.5]} 12. b4 {[%clk 0:02:42.8]} 12... cxb4 {[%clk
0:02:47.4]} 13. axb4 {[%clk 0:02:42.8]} 13... b5 {[%clk 0:02:47]} 14. cxb5
{[%clk 0:02:41]} 14... axb5 {[%clk 0:02:47.9]} 15. d4 {[%clk 0:02:40.4]} 15...
exd4 {[%clk 0:02:44.1]} 16. Nxd4 {[%clk 0:02:40.1]} 16... Nxd4 {[%clk
0:02:44.2]} 17. Bxd4 {[%clk 0:02:40]} 17... d5 {[%clk 0:02:40.7]} 18. e5 {[%clk
0:02:32.5]} 18... Ne4 {[%clk 0:02:38.6]} 19. Nxb5 {[%clk 0:02:22.3]} 19... Qd7
{[%clk 0:02:34.8]} 20. Nd6 {[%clk 0:01:37.5]} 20... Nxd6 {[%clk 0:02:27.2]} 21.
exd6 {[%clk 0:01:37.5]} 21... Bxd6 {[%clk 0:02:26.7]} 22. b5 {[%clk 0:01:37.8]}
22... Rfc8 {[%clk 0:02:20.1]} 23. b6 {[%clk 0:01:30]} 23... Bxh3 {[%clk
0:02:12.5]} 24. Ba6 {[%clk 0:01:21.6]} 24... Rd8 {[%clk 0:02:08.2]} 25. Qf3
{[%clk 0:01:09.1]} 25... Bf5 {[%clk 0:01:54.5]} 26. Bd3 {[%clk 0:01:04.9]} 26...
Bg4 {[%clk 0:01:50]} 27. Qe3 {[%clk 0:01:03.3]} 27... Re8 {[%clk 0:01:35.2]} 28.
Bb5 {[%clk 0:00:55.1]} 28... Rxe3 {[%clk 0:01:23.6]} 29. Bxd7 {[%clk 0:00:54.8]}
29... Re4 {[%clk 0:01:23.3]} 30. Bxg4 {[%clk 0:00:45.4]} 30... Rxd4 {[%clk
0:01:19.3]} 31. Bf3 {[%clk 0:00:44.9]} 31... Bb4 {[%clk 0:00:57.7]} 32. Rfd1
{[%clk 0:00:36.2]} 32... Rxd1+ {[%clk 0:00:54]} 33. Rxd1 {[%clk 0:00:36.4]}
33... Rxb6 {[%clk 0:00:54.9]} 34. Rxd5 {[%clk 0:00:36.4]} 34... Kf8 {[%clk
0:00:49.9]} 35. Rd7 {[%clk 0:00:32.5]} 35... Be7 {[%clk 0:00:40.4]} 36. g3
{[%clk 0:00:31]} 36... f6 {[%clk 0:00:35.2]} 37. Bd5 {[%clk 0:00:28.7]} 37...
Rb5 {[%clk 0:00:34.3]} 38. Bc4 {[%clk 0:00:26.5]} 38... Rb2 {[%clk 0:00:32]} 39.
Rc7 {[%clk 0:00:24.9]} 39... Ke8 {[%clk 0:00:31.3]} 40. Be6 {[%clk 0:00:23.6]}
40... g5 {[%clk 0:00:25.8]} 41. g4 {[%clk 0:00:17.9]} 41... Rb6 {[%clk
0:00:25.6]} 42. Bf5 {[%clk 0:00:16.8]} 42... Bd6 {[%clk 0:00:24.6]} 43. Rh7
{[%clk 0:00:14.7]} 43... Rb2 {[%clk 0:00:23.9]} 44. Rxh6 {[%clk 0:00:14.3]}
44... Be5 {[%clk 0:00:24.8]} 45. Rh3 {[%clk 0:00:13.6]} 45... Bd4 {[%clk
0:00:24.5]} 46. Rf3 {[%clk 0:00:13.9]} 46... Ke7 {[%clk 0:00:24.8]} 47. Kg2
{[%clk 0:00:14.3]} 47... Kd6 {[%clk 0:00:25.1]} 48. Kg3 {[%clk 0:00:14.5]} 48...
Ke5 {[%clk 0:00:24.4]} 49. Kg2 {[%clk 0:00:14.9]} 49... Rd2 {[%clk 0:00:23.5]}
50. Bd3 {[%clk 0:00:14.5]} 50... Rb2 {[%clk 0:00:23]} 51. Rf5+ {[%clk
0:00:14.1]} 51... Ke6 {[%clk 0:00:20.5]} 52. Bc4+ {[%clk 0:00:14.4]} 52... Kd6
{[%clk 0:00:20.4]} 53. Rd5+ {[%clk 0:00:14.7]} 53... Kc6 {[%clk 0:00:20.6]} 54.
Rxd4 {[%clk 0:00:15.4]} 54... Kc5 {[%clk 0:00:20.9]} 55. Re4 {[%clk 0:00:15.9]}
55... Rc2 {[%clk 0:00:20.7]} 56. Be2 {[%clk 0:00:15.7]} 56... Kd5 {[%clk
0:00:20]} 57. Bf3 {[%clk 0:00:15.2]} 57... Kd6 {[%clk 0:00:19.5]} 58. Rd4+
{[%clk 0:00:14.6]} 1-0

[Event "*** SCC Grand Prix: Titled Tuesday Blitz"]
[Site "Chess.com"]
[Date "2020.09.08"]
[Round "3"]
[White "Goryachkina"]
[Black "Bacyanide"]
[Result "1/2-1/2"]
[WhiteElo "2604"]
[BlackElo "2408"]
[TimeControl "180+1"]
[EndTime "10:30:07 PDT"]
[Termination "Game drawn by repetition"]

1. e4 {[%clk 0:03:00.9]} 1... c6 {[%clk 0:02:57.6]} 2. d4 {[%clk 0:03:00.2]}
2... d5 {[%clk 0:02:58.5]} 3. exd5 {[%clk 0:03:00.5]} 3... cxd5 {[%clk
0:02:58.4]} 4. Bd3 {[%clk 0:03:00.7]} 4... Nc6 {[%clk 0:02:57.2]} 5. c3 {[%clk
0:03:00.5]} 5... Qc7 {[%clk 0:02:54.6]} 6. h3 {[%clk 0:02:59.3]} 6... g6 {[%clk
0:02:52.8]} 7. Ne2 {[%clk 0:02:51.1]} 7... Bf5 {[%clk 0:02:50]} 8. Na3 {[%clk
0:02:41.6]} 8... a6 {[%clk 0:02:43.7]} 9. Nc2 {[%clk 0:02:30.4]} 9... Nf6 {[%clk
0:02:41.5]} 10. Bf4 {[%clk 0:02:27.3]} 10... Qd7 {[%clk 0:02:39.3]} 11. Ne3
{[%clk 0:02:24.6]} 11... Bxd3 {[%clk 0:02:32.8]} 12. Qxd3 {[%clk 0:02:25.5]}
12... Bg7 {[%clk 0:02:32.4]} 13. O-O {[%clk 0:02:25.1]} 13... O-O {[%clk
0:02:29.3]} 14. Nc1 {[%clk 0:02:16.1]} 14... Ne4 {[%clk 0:02:09.8]} 15. Nb3
{[%clk 0:02:14.8]} 15... e6 {[%clk 0:01:51]} 16. Rfe1 {[%clk 0:02:09.8]} 16...
b6 {[%clk 0:01:45.4]} 17. a4 {[%clk 0:02:05.1]} 17... Rfc8 {[%clk 0:01:37.6]}
18. Re2 {[%clk 0:01:38.3]} 18... h6 {[%clk 0:01:22.3]} 19. Ng4 {[%clk
0:01:21.6]} 19... h5 {[%clk 0:01:20.9]} 20. Ne3 {[%clk 0:01:11.7]} 20... Qd8
{[%clk 0:01:09.5]} 21. Nf1 {[%clk 0:01:03.6]} 21... Qf6 {[%clk 0:01:08.7]} 22.
Bh2 {[%clk 0:01:03.1]} 22... Qd8 {[%clk 0:00:58.2]} 23. Nfd2 {[%clk 0:01:01.3]}
23... Nd6 {[%clk 0:00:55.1]} 24. Ree1 {[%clk 0:00:43.3]} 24... Nc4 {[%clk
0:00:54.5]} 25. Ra2 {[%clk 0:00:37.2]} 25... N6a5 {[%clk 0:00:46.1]} 26. Nxa5
{[%clk 0:00:35]} 26... Nxa5 {[%clk 0:00:47]} 27. Raa1 {[%clk 0:00:29.7]} 27...
Nc4 {[%clk 0:00:46.6]} 28. Nxc4 {[%clk 0:00:29.6]} 28... Rxc4 {[%clk 0:00:47.5]}
29. Be5 {[%clk 0:00:18.3]} 29... b5 {[%clk 0:00:43.2]} 30. axb5 {[%clk
0:00:15.6]} 30... axb5 {[%clk 0:00:44.1]} 31. Bxg7 {[%clk 0:00:15.7]} 31... Kxg7
{[%clk 0:00:41]} 32. Rxa8 {[%clk 0:00:14.3]} 32... Qxa8 {[%clk 0:00:39.5]} 33.
b3 {[%clk 0:00:14.1]} 33... Rc8 {[%clk 0:00:37.4]} 34. b4 {[%clk 0:00:12.3]}
34... Qa3 {[%clk 0:00:34.6]} 35. Re3 {[%clk 0:00:12.5]} 35... Qb3 {[%clk
0:00:26.8]} 36. Kh2 {[%clk 0:00:12.4]} 36... Qc4 {[%clk 0:00:26.6]} 37. Qxc4
{[%clk 0:00:12.3]} 37... Rxc4 {[%clk 0:00:24.6]} 38. Kg3 {[%clk 0:00:12.6]}
38... Kf6 {[%clk 0:00:23.8]} 39. Kf3 {[%clk 0:00:12.9]} 39... Ke7 {[%clk
0:00:23.2]} 40. Ke2 {[%clk 0:00:13.3]} 40... Kd6 {[%clk 0:00:23.4]} 41. Rf3
{[%clk 0:00:13.3]} 41... Ke7 {[%clk 0:00:15.4]} 42. Kd3 {[%clk 0:00:13.6]} 42...
Rc7 {[%clk 0:00:15.8]} 43. h4 {[%clk 0:00:13.8]} 43... Kd6 {[%clk 0:00:15.2]}
44. Re3 {[%clk 0:00:14]} 44... Ra7 {[%clk 0:00:15.1]} 45. Re2 {[%clk 0:00:14.3]}
45... Ra6 {[%clk 0:00:14]} 46. g3 {[%clk 0:00:14.5]} 46... Ra7 {[%clk
0:00:12.3]} 47. Rd2 {[%clk 0:00:12.1]} 47... Ra3 {[%clk 0:00:11.4]} 48. Re2
{[%clk 0:00:11.7]} 48... f6 {[%clk 0:00:10.5]} 49. f4 {[%clk 0:00:11.7]} 49...
Ra1 {[%clk 0:00:09.8]} 50. Rg2 {[%clk 0:00:10.3]} 50... Rd1+ {[%clk 0:00:09.7]}
51. Ke3 {[%clk 0:00:10.5]} 51... Ra1 {[%clk 0:00:10.3]} 52. Kd3 {[%clk
0:00:10.8]} 52... Rd1+ {[%clk 0:00:09.6]} 53. Ke3 {[%clk 0:00:11.1]} 53... Ra1
{[%clk 0:00:10.1]} 54. Kd3 {[%clk 0:00:11.3]} 1/2-1/2

[Event "*** SCC Grand Prix: Titled Tuesday Blitz"]
[Site "Chess.com"]
[Date "2020.09.08"]
[Round "3"]
[White "Bulatova_Kamaliya"]
[Black "Tactictic"]
[Result "0-1"]
[WhiteElo "2113"]
[BlackElo "2349"]
[TimeControl "180+1"]
[EndTime "10:30:07 PDT"]
[Termination "Tactictic won on time"]

1. Nf3 {[%clk 0:02:59.5]} 1... d5 {[%clk 0:02:56.3]} 2. b3 {[%clk 0:02:59.4]}
2... Nf6 {[%clk 0:02:39.5]} 3. Bb2 {[%clk 0:02:59.5]} 3... c5 {[%clk 0:02:28.6]}
4. e3 {[%clk 0:02:59.3]} 4... Nc6 {[%clk 0:02:15.4]} 5. Bb5 {[%clk 0:02:58.9]}
5... e6 {[%clk 0:02:06]} 6. Ne5 {[%clk 0:02:57.9]} 6... Qc7 {[%clk 0:01:56.7]}
7. f4 {[%clk 0:02:56.2]} 7... Bd6 {[%clk 0:01:26.6]} 8. O-O {[%clk 0:02:53.4]}
8... O-O {[%clk 0:01:24.5]} 9. Bxc6 {[%clk 0:02:43.9]} 9... bxc6 {[%clk
0:01:23.9]} 10. d3 {[%clk 0:02:38.2]} 10... a5 {[%clk 0:01:23.4]} 11. Nd2 {[%clk
0:02:38.2]} 11... a4 {[%clk 0:01:22.5]} 12. Ndf3 {[%clk 0:02:31.5]} 12... Nd7
{[%clk 0:01:19.4]} 13. Nxd7 {[%clk 0:01:46.6]} 13... Bxd7 {[%clk 0:01:20.3]} 14.
Ne5 {[%clk 0:01:47]} 14... f6 {[%clk 0:01:16.5]} 15. Ng4 {[%clk 0:01:39.2]}
15... e5 {[%clk 0:01:13.8]} 16. f5 {[%clk 0:01:39]} 16... a3 {[%clk 0:01:09.1]}
17. Bc1 {[%clk 0:01:37.2]} 17... Rfb8 {[%clk 0:00:50.1]} 18. e4 {[%clk
0:01:33.2]} 18... Rb4 {[%clk 0:00:49.1]} 19. Bd2 {[%clk 0:01:29.6]} 19... Rbb8
{[%clk 0:00:44.1]} 20. Qf3 {[%clk 0:01:27.7]} 20... Kf7 {[%clk 0:00:35.8]} 21.
Qh3 {[%clk 0:01:25.1]} 21... Rh8 {[%clk 0:00:33.5]} 22. Qh5+ {[%clk 0:01:23]}
22... Kf8 {[%clk 0:00:31.8]} 23. Nxf6 {[%clk 0:01:12.6]} 23... gxf6 {[%clk
0:00:30]} 24. Bh6+ {[%clk 0:01:10.4]} 24... Ke7 {[%clk 0:00:30.2]} 25. Bg7
{[%clk 0:01:09.7]} 25... Rag8 {[%clk 0:00:07.4]} 26. Qh6 {[%clk 0:01:06]} 26...
Kd8 {[%clk 0:00:03.7]} 27. Bxf6+ {[%clk 0:01:04.6]} 27... Be7 {[%clk 0:00:03.3]}
28. Bxh8 {[%clk 0:01:03.3]} 28... Rxh8 {[%clk 0:00:03.8]} 29. Qg7 {[%clk
0:01:02]} 29... Rf8 {[%clk 0:00:01.9]} 30. f6 {[%clk 0:00:59.6]} 30... Bd6
{[%clk 0:00:02.4]} 31. Qxh7 {[%clk 0:00:58.4]} 31... Kc8 {[%clk 0:00:01.7]} 32.
f7 {[%clk 0:00:57.1]} 32... Kb7 {[%clk 0:00:02.6]} 33. c4 {[%clk 0:00:54]} 33...
Be6 {[%clk 0:00:02.8]} 34. cxd5 {[%clk 0:00:49.2]} 34... cxd5 {[%clk 0:00:03.7]}
35. exd5 {[%clk 0:00:48.2]} 35... Bxd5 {[%clk 0:00:04.6]} 36. Rf2 {[%clk
0:00:38.7]} 36... Rxf7 {[%clk 0:00:04.3]} 37. Qh4 {[%clk 0:00:34.3]} 37... Rxf2
{[%clk 0:00:03.7]} 38. Qxf2 {[%clk 0:00:33.7]} 38... c4 {[%clk 0:00:03.8]} 39.
Kh1 {[%clk 0:00:28.1]} 39... cxd3 {[%clk 0:00:03]} 40. Qd2 {[%clk 0:00:26.3]}
40... e4 {[%clk 0:00:02.8]} 41. Rc1 {[%clk 0:00:24.5]} 41... Qb6 {[%clk
0:00:03.1]} 42. Re1 {[%clk 0:00:19.6]} 42... Ka6 {[%clk 0:00:03]} 43. Qg5 {[%clk
0:00:16.9]} 43... Bc6 {[%clk 0:00:02.4]} 44. Qg4 {[%clk 0:00:11.7]} 44... Bb4
{[%clk 0:00:03.3]} 0-1

[Event "*** SCC Grand Prix: Titled Tuesday Blitz"]
[Site "Chess.com"]
[Date "2020.09.08"]
[Round "3"]
[White "PauloCesarCosta_sad"]
[Black "jamalm2"]
[Result "1-0"]
[WhiteElo "2286"]
[BlackElo "1918"]
[TimeControl "180+1"]
[EndTime "10:30:07 PDT"]
[Termination "PauloCesarCosta_sad won on time"]

1. Nf3 {[%clk 0:03:00.9]} 1... Nf6 {[%clk 0:02:59.4]} 2. c4 {[%clk 0:03:00.4]}
2... e6 {[%clk 0:02:59]} 3. d4 {[%clk 0:02:59.6]} 3... b6 {[%clk 0:02:58.6]} 4.
g3 {[%clk 0:02:58.9]} 4... Bb7 {[%clk 0:02:58.4]} 5. Bg2 {[%clk 0:02:59.3]} 5...
Bb4+ {[%clk 0:02:57.8]} 6. Nc3 {[%clk 0:02:58]} 6... O-O {[%clk 0:02:55.4]} 7.
O-O {[%clk 0:02:55.4]} 7... d6 {[%clk 0:02:54.4]} 8. Qb3 {[%clk 0:02:28]} 8...
Bxc3 {[%clk 0:02:51.2]} 9. Qxc3 {[%clk 0:02:22.8]} 9... Nbd7 {[%clk 0:02:50.8]}
10. b3 {[%clk 0:02:21]} 10... Re8 {[%clk 0:02:47.5]} 11. Bb2 {[%clk 0:02:20.6]}
11... Qe7 {[%clk 0:02:28.7]} 12. Qe3 {[%clk 0:02:19.9]} 12... e5 {[%clk
0:02:24.8]} 13. dxe5 {[%clk 0:02:14.5]} 13... dxe5 {[%clk 0:02:24]} 14. Rad1
{[%clk 0:02:08.8]} 14... h6 {[%clk 0:02:14.1]} 15. Bh3 {[%clk 0:02:04.4]} 15...
Rad8 {[%clk 0:02:07.4]} 16. Nxe5 {[%clk 0:02:04.3]} 16... Nxe5 {[%clk
0:02:05.4]} 17. Rxd8 {[%clk 0:02:00.4]} 17... Qxd8 {[%clk 0:01:57.3]} 18. Bxe5
{[%clk 0:02:00.4]} 18... Qe7 {[%clk 0:01:39.6]} 19. Bxf6 {[%clk 0:01:54.1]}
19... Qxe3 {[%clk 0:01:31.4]} 20. fxe3 {[%clk 0:01:55]} 20... gxf6 {[%clk
0:01:30.5]} 21. Rd1 {[%clk 0:01:48.7]} 21... Rxe3 {[%clk 0:01:26.9]} 22. Rd7
{[%clk 0:01:43.3]} 22... Rxe2 {[%clk 0:01:23.6]} 23. Rxc7 {[%clk 0:01:39.1]}
23... Be4 {[%clk 0:01:18.5]} 24. Rxa7 {[%clk 0:01:38]} 24... f5 {[%clk 0:01:16]}
25. Bf1 {[%clk 0:01:31.8]} 25... Rb2 {[%clk 0:01:11.7]} 26. Rd7 {[%clk
0:01:31.2]} 26... Rxa2 {[%clk 0:01:09.3]} 27. Rd6 {[%clk 0:01:24.7]} 27... Ra1
{[%clk 0:01:00.2]} 28. b4 {[%clk 0:01:24.3]} 28... Rb1 {[%clk 0:00:56.5]} 29. b5
{[%clk 0:01:15.1]} 29... Rc1 {[%clk 0:00:43.2]} 30. Kf2 {[%clk 0:01:10.2]} 30...
Rc2+ {[%clk 0:00:33.1]} 31. Ke3 {[%clk 0:01:10.2]} 31... Rc1 {[%clk 0:00:29.5]}
32. Be2 {[%clk 0:01:04.1]} 32... Rc3+ {[%clk 0:00:27.6]} 33. Kd2 {[%clk
0:01:03.7]} 33... Rb3 {[%clk 0:00:23]} 34. Rxb6 {[%clk 0:00:58.3]} 34... Rb2+
{[%clk 0:00:22.3]} 35. Ke3 {[%clk 0:00:54.7]} 35... Rb3+ {[%clk 0:00:20.4]} 36.
Kf2 {[%clk 0:00:54.6]} 36... Rb2 {[%clk 0:00:20]} 37. Rd6 {[%clk 0:00:46.9]}
37... Kg7 {[%clk 0:00:19.5]} 38. c5 {[%clk 0:00:42.3]} 38... h5 {[%clk
0:00:17.4]} 39. c6 {[%clk 0:00:37.8]} 39... h4 {[%clk 0:00:07.4]} 40. c7 {[%clk
0:00:32.7]} 40... Bb7 {[%clk 0:00:05.2]} 41. Rb6 {[%clk 0:00:27.4]} 41... Bc8
{[%clk 0:00:04.3]} 42. Rb8 {[%clk 0:00:26.7]} 42... Bd7 {[%clk 0:00:03.1]} 43.
b6 {[%clk 0:00:18.3]} 43... hxg3+ {[%clk 0:00:03.2]} 44. hxg3 {[%clk 0:00:18]}
44... f4 {[%clk 0:00:02.1]} 45. gxf4 {[%clk 0:00:17.4]} 45... Bb5 {[%clk
0:00:01]} 46. c8=Q {[%clk 0:00:15.6]} 1-0

[Event "*** SCC Grand Prix: Titled Tuesday Blitz"]
[Site "Chess.com"]
[Date "2020.09.08"]
[Round "3"]
[White "SilviusTiberius"]
[Black "OscarAng"]
[Result "1/2-1/2"]
[WhiteElo "2489"]
[BlackElo "2244"]
[TimeControl "180+1"]
[EndTime "10:30:11 PDT"]
[Termination "Game drawn by repetition"]

1. e4 {[%clk 0:03:00.9]} 1... d5 {[%clk 0:02:58]} 2. exd5 {[%clk 0:03:00.6]}
2... Qxd5 {[%clk 0:02:58.9]} 3. Nf3 {[%clk 0:03:00.6]} 3... c6 {[%clk
0:02:58.6]} 4. d4 {[%clk 0:02:59.8]} 4... Nf6 {[%clk 0:02:58.5]} 5. Be2 {[%clk
0:02:59.3]} 5... Bg4 {[%clk 0:02:57.8]} 6. h3 {[%clk 0:02:58.3]} 6... Bh5 {[%clk
0:02:56.6]} 7. O-O {[%clk 0:02:57.9]} 7... e6 {[%clk 0:02:56.1]} 8. c4 {[%clk
0:02:58.3]} 8... Qd8 {[%clk 0:02:55.3]} 9. Nc3 {[%clk 0:02:58.6]} 9... Be7
{[%clk 0:02:54.8]} 10. Be3 {[%clk 0:02:51]} 10... O-O {[%clk 0:02:53.4]} 11. g4
{[%clk 0:02:47.2]} 11... Bg6 {[%clk 0:02:52.8]} 12. Ne5 {[%clk 0:02:47.8]} 12...
Nbd7 {[%clk 0:02:52.6]} 13. f4 {[%clk 0:02:45.6]} 13... Qc7 {[%clk 0:01:44.3]}
14. g5 {[%clk 0:02:23.1]} 14... Nxe5 {[%clk 0:01:34.9]} 15. gxf6 {[%clk
0:02:19]} 15... Nxc4 {[%clk 0:01:26.9]} 16. fxe7 {[%clk 0:02:02.5]} 16... Nxe3
{[%clk 0:01:25]} 17. exf8=Q+ {[%clk 0:02:02.1]} 17... Rxf8 {[%clk 0:01:22.3]}
18. Qd2 {[%clk 0:02:00.8]} 18... Nxf1 {[%clk 0:01:18.2]} 19. Bxf1 {[%clk
0:01:57.3]} 19... Rd8 {[%clk 0:01:12.8]} 20. Rd1 {[%clk 0:01:49]} 20... h6
{[%clk 0:01:10.3]} 21. Qe3 {[%clk 0:01:39.5]} 21... Qb6 {[%clk 0:00:57.1]} 22.
Rd2 {[%clk 0:01:36.8]} 22... a5 {[%clk 0:00:55]} 23. Be2 {[%clk 0:01:18.9]}
23... Bf5 {[%clk 0:00:50.9]} 24. Bg4 {[%clk 0:01:14.9]} 24... Bg6 {[%clk
0:00:49.5]} 25. h4 {[%clk 0:01:04.8]} 25... Qb4 {[%clk 0:00:44.4]} 26. h5 {[%clk
0:00:59.3]} 26... Bh7 {[%clk 0:00:45]} 27. a3 {[%clk 0:00:53.7]} 27... Qe7
{[%clk 0:00:45.2]} 28. Kg2 {[%clk 0:00:50.2]} 28... b5 {[%clk 0:00:45]} 29. Kg3
{[%clk 0:00:27.8]} 29... b4 {[%clk 0:00:41.3]} 30. Na4 {[%clk 0:00:27.9]} 30...
bxa3 {[%clk 0:00:39.5]} 31. Qxa3 {[%clk 0:00:27.3]} 31... Qf6 {[%clk 0:00:36.5]}
32. Qe3 {[%clk 0:00:21]} 32... g5 {[%clk 0:00:27.2]} 33. fxg5 {[%clk 0:00:18.9]}
33... hxg5 {[%clk 0:00:28.1]} 34. Nc5 {[%clk 0:00:18.5]} 34... e5 {[%clk
0:00:23.8]} 35. Rf2 {[%clk 0:00:11.1]} 35... Qf4+ {[%clk 0:00:21]} 36. Qxf4
{[%clk 0:00:07.8]} 36... exf4+ {[%clk 0:00:19.4]} 37. Kh3 {[%clk 0:00:06.6]}
37... Rxd4 {[%clk 0:00:19.8]} 38. Re2 {[%clk 0:00:07]} 38... Rc4 {[%clk
0:00:18.4]} 39. Re8+ {[%clk 0:00:06.6]} 39... Kg7 {[%clk 0:00:17.9]} 40. Nd7
{[%clk 0:00:07.1]} 40... Rb4 {[%clk 0:00:16.9]} 41. h6+ {[%clk 0:00:04.9]} 41...
Kxh6 {[%clk 0:00:15.8]} 42. Nf6 {[%clk 0:00:05.4]} 42... Kg7 {[%clk 0:00:16]}
43. Nxh7 {[%clk 0:00:05.1]} 43... Kxh7 {[%clk 0:00:16.9]} 44. Bf5+ {[%clk
0:00:05.2]} 44... Kg7 {[%clk 0:00:17.3]} 45. Kg4 {[%clk 0:00:05.6]} 45... f6
{[%clk 0:00:16.5]} 46. Re7+ {[%clk 0:00:05.3]} 46... Kf8 {[%clk 0:00:16.5]} 47.
Rd7 {[%clk 0:00:04.8]} 47... Rxb2 {[%clk 0:00:15.7]} 48. Kh5 {[%clk 0:00:05.3]}
48... Rb5 {[%clk 0:00:12.5]} 49. Kg6 {[%clk 0:00:05.4]} 49... Rd5 {[%clk
0:00:12.3]} 50. Rc7 {[%clk 0:00:05]} 50... Rd6 {[%clk 0:00:12]} 51. Rc8+ {[%clk
0:00:02.1]} 51... Ke7 {[%clk 0:00:11.9]} 52. Rc7+ {[%clk 0:00:03]} 52... Kd8
{[%clk 0:00:11.3]} 53. Rc8+ {[%clk 0:00:03.6]} 53... Ke7 {[%clk 0:00:11.9]} 54.
Rc7+ {[%clk 0:00:04.2]} 54... Kd8 {[%clk 0:00:12.4]} 55. Rc8+ {[%clk 0:00:04]}
55... Ke7 {[%clk 0:00:12.7]} 1/2-1/2

[Event "*** SCC Grand Prix: Titled Tuesday Blitz"]
[Site "Chess.com"]
[Date "2020.09.08"]
[Round "3"]
[White "jamik13"]
[Black "Pikachess999"]
[Result "1-0"]
[WhiteElo "2202"]
[BlackElo "2392"]
[TimeControl "180+1"]
[EndTime "10:30:11 PDT"]
[Termination "jamik13 won on time"]

1. e4 {[%clk 0:02:59.7]} 1... e6 {[%clk 0:02:59.9]} 2. d4 {[%clk 0:02:59.2]}
2... d5 {[%clk 0:03:00.1]} 3. Nc3 {[%clk 0:02:59.7]} 3... Nf6 {[%clk 0:02:59.3]}
4. Bg5 {[%clk 0:02:57.8]} 4... Be7 {[%clk 0:02:55.7]} 5. e5 {[%clk 0:02:57.3]}
5... Nfd7 {[%clk 0:02:55.8]} 6. h4 {[%clk 0:02:57.3]} 6... h6 {[%clk 0:02:55.9]}
7. Bxe7 {[%clk 0:02:54.9]} 7... Qxe7 {[%clk 0:02:56.8]} 8. Qg4 {[%clk
0:02:53.4]} 8... O-O {[%clk 0:02:56.7]} 9. Bd3 {[%clk 0:02:47.3]} 9... c5 {[%clk
0:02:55]} 10. Nf3 {[%clk 0:02:42.4]} 10... Nc6 {[%clk 0:02:53.5]} 11. Nb5 {[%clk
0:02:38.4]} 11... cxd4 {[%clk 0:02:50.8]} 12. Qg3 {[%clk 0:02:32]} 12... a6
{[%clk 0:02:02.1]} 13. Nbxd4 {[%clk 0:02:18.5]} 13... Nxd4 {[%clk 0:02:02.2]}
14. Nxd4 {[%clk 0:02:17.8]} 14... Qb4+ {[%clk 0:02:02.7]} 15. c3 {[%clk
0:02:16.4]} 15... Qxb2 {[%clk 0:02:00]} 16. O-O {[%clk 0:02:14.5]} 16... Qb6
{[%clk 0:01:51.3]} 17. Rab1 {[%clk 0:02:11.9]} 17... Qc7 {[%clk 0:01:50.2]} 18.
f4 {[%clk 0:02:11.1]} 18... Nc5 {[%clk 0:01:47.1]} 19. Bc2 {[%clk 0:02:09.2]}
19... f5 {[%clk 0:01:29.5]} 20. exf6 {[%clk 0:02:03.6]} 20... Rxf6 {[%clk
0:01:28.8]} 21. Qe3 {[%clk 0:01:54.3]} 21... Bd7 {[%clk 0:01:26.4]} 22. h5
{[%clk 0:01:49.1]} 22... Raf8 {[%clk 0:01:23.7]} 23. g3 {[%clk 0:01:43.8]} 23...
Bc8 {[%clk 0:01:00.2]} 24. Rfe1 {[%clk 0:01:38.9]} 24... Ne4 {[%clk 0:00:46.1]}
25. Bxe4 {[%clk 0:01:32.6]} 25... dxe4 {[%clk 0:00:47]} 26. Rbc1 {[%clk
0:01:26.2]} 26... e5 {[%clk 0:00:46.9]} 27. Ne2 {[%clk 0:01:17.7]} 27... Bg4
{[%clk 0:00:33.7]} 28. Qxe4 {[%clk 0:01:15.6]} 28... Bxe2 {[%clk 0:00:33.2]} 29.
Rxe2 {[%clk 0:01:01.7]} 29... exf4 {[%clk 0:00:33.4]} 30. Qd5+ {[%clk
0:00:48.3]} 30... Kh8 {[%clk 0:00:33.1]} 31. gxf4 {[%clk 0:00:40.5]} 31... Qxf4
{[%clk 0:00:31.4]} 32. Rd1 {[%clk 0:00:32.1]} 32... Rf5 {[%clk 0:00:25.3]} 33.
Qd4 {[%clk 0:00:20.5]} 33... Qg5+ {[%clk 0:00:10.4]} 34. Rg2 {[%clk 0:00:19.4]}
34... Qf6 {[%clk 0:00:07.7]} 35. Qxf6 {[%clk 0:00:18]} 35... R5xf6 {[%clk
0:00:08.6]} 36. Rd7 {[%clk 0:00:16.9]} 36... R8f7 {[%clk 0:00:08.6]} 37. Rxf7
{[%clk 0:00:14.9]} 37... Rxf7 {[%clk 0:00:09]} 38. Rd2 {[%clk 0:00:14]} 38...
Kh7 {[%clk 0:00:05.9]} 39. Kg2 {[%clk 0:00:12]} 39... Rc7 {[%clk 0:00:03.2]} 40.
Rd3 {[%clk 0:00:11.3]} 40... g6 {[%clk 0:00:03.4]} 41. hxg6+ {[%clk 0:00:10.4]}
41... Kxg6 {[%clk 0:00:04.3]} 42. Kg3 {[%clk 0:00:10.6]} 42... Rc6 {[%clk
0:00:03.5]} 43. Kf4 {[%clk 0:00:08.4]} 43... h5 {[%clk 0:00:02.6]} 44. Rg3+
{[%clk 0:00:07.2]} 44... Kf6 {[%clk 0:00:02.4]} 45. Rh3 {[%clk 0:00:06.7]} 45...
Kg6 {[%clk 0:00:01.3]} 46. Rg3+ {[%clk 0:00:06.2]} 46... Kf6 {[%clk 0:00:01.7]}
47. Rd3 {[%clk 0:00:04.9]} 47... Rc4+ {[%clk 0:00:01.3]} 48. Kg3 {[%clk
0:00:04.1]} 1-0